bitfinex-derivatives/quotes_SOLF0:USTF0_20260310
["timestamp","ask_amount","ask_price","bid_price","bid_amount"]
[1773141821062,23.13743601,86.909,86.86,3.39495109]
[1773141822370,23.13743601,86.909,86.875,10.359]
[1773141825774,23.13743601,86.909,86.881,10.358]
[1773141827070,23.13743601,86.909,86.874,10.359]
[1773141828669,23.13743601,86.909,86.88,10.358]
[1773141829176,23.13743601,86.909,86.87,3.39495109]
[1773141830476,23.13743601,86.909,86.88,10.358]
[1773141830778,23.13743601,86.909,86.86,3.39495109]
[1773141831477,23.13743601,86.909,86.869,10.359]
[1773141832379,23.13743601,86.909,86.874,10.359]
[1773141832781,23.13743601,86.909,86.862,14.25287491]
[1773141833181,23.13743601,86.909,86.864,14.25287491]
[1773141833783,23.13743601,86.909,86.87,3.39495109]
[1773141834481,23.13743601,86.909,86.873,10.359]
[1773141838676,23.0909861,86.939,86.89,3.3894833]
[1773141838883,23.0909861,86.939,86.91,3.3894833]
[1773141839984,23.0909861,86.939,86.913,10.354]
[1773141840180,23.09453032,86.964,86.91,3.3894833]
[1773141840774,23.09453032,86.958,86.912,10.354]
[1773141841178,23.09453032,86.958,86.92,3.3894833]
[1773141841378,23.09453032,86.958,86.93,3.3894833]
[1773141843986,23.09453032,86.958,86.92,3.3894833]
[1773141844185,23.09453032,86.958,86.912,14.25287491]
[1773141844386,23.09453032,86.958,86.91,17.64235821]
[1773141844588,23.09453032,86.958,86.92,10.353]
[1773141845285,3.3894833,86.97,86.912,10.354]
[1773141845286,23.03751165,86.957,86.912,10.354]
[1773141845589,23.03751165,86.957,86.92,3.3894833]
[1773141846690,23.03751165,86.957,86.91,3.3894833]
[1773141847387,23.03751165,86.957,86.93,3.3894833]
[1773141847588,23.02008521,86.979,86.93,3.3894833]
[1773141847887,23.02008521,86.979,86.94,3.3894833]
[1773141848688,23.02008521,86.979,86.931,10.352]
[1773141852291,23.00549528,86.978,86.931,10.352]
[1773141855994,23.00720697,86.976,86.931,10.352]
[1773141857800,23.00720697,86.976,86.92,3.3894833]
[1773141857801,23.01540008,86.974,86.921,10.353]
[1773141858298,23.01540008,86.974,86.92,3.3894833]
[1773141859396,23.01540008,86.974,86.928,10.352]
[1773141865104,23.01540008,86.974,86.93,3.3894833]
[1773141866106,22.99691984,86.969,86.903,20.711]
[1773141866306,22.99691984,86.969,86.92,3.3894833]
[1773141866907,22.99691984,86.969,86.93,10.352]
[1773141874610,22.99691984,86.969,86.92,3.3894833]
[1773141874611,22.98147507,86.968,86.924,10.353]
[1773141874808,22.98147507,86.959,86.91,3.3894833]
[1773141876115,22.98147507,86.959,86.869,34.59]
[1773141876116,22.97187733,86.939,86.886,14.25287491]
[1773141876304,22.97187733,86.939,86.89,3.3894833]
[1773141877112,22.97187733,86.939,86.903,10.355]
[1773141878512,22.97187733,86.939,86.909,10.355]
[1773141879702,22.97187733,86.939,86.9,3.3894833]
[1773141879905,22.97187733,86.939,86.89,17.64235821]
[1773141880512,22.97187733,86.939,86.891,14.25287491]
[1773141881307,22.97187733,86.939,86.893,14.25287491]
[1773141881611,22.97187733,86.939,86.894,10.356]
[1773141882308,22.97187733,86.939,86.898,10.356]
[1773141883010,22.97187733,86.939,86.904,10.355]
[1773141885117,3.3894833,86.92,86.873,21.3757631]
[1773141885414,10.69544507,86.919,86.87,3.3894833]
[1773141885613,20.695,86.973,86.892,10.357]
[1773141885614,3.3894833,86.94,86.892,10.357]
[1773141885806,10.69544507,86.939,86.9,3.3894833]
[1773141887018,10.69544507,86.939,86.89,3.3894833]
[1773141887517,10.7066609,86.95,86.91,3.3894833]
[1773141888017,10.7066609,86.962,86.925,10.353]
[1773141888716,10.7066609,86.962,86.92,3.3894833]
[1773141888917,10.7066609,86.962,86.897,21.3757631]
[1773141889118,10.7066609,86.959,86.9,3.3894833]
[1773141890018,10.7066609,86.959,86.91,3.3894833]
[1773141890419,10.349,86.958,86.91,3.3894833]
[1773141890620,10.69545148,86.957,86.91,3.3894833]
[1773141890921,10.69545148,86.957,86.912,10.354]
[1773141892715,10.69545148,86.957,86.918,10.354]
[1773141895723,10.69545148,86.957,86.92,3.3894833]
[1773141896123,10.69545148,86.957,86.918,10.354]
[1773141897123,10.69545148,86.957,86.93,3.3894833]
[1773141897516,10.69545148,86.957,86.925,10.353]
[1773141900121,10.69545148,86.957,86.918,10.353]
[1773141900522,10.65925288,86.979,86.93,3.38448941]
[1773141900823,10.65925288,86.979,86.933,10.352]
[1773141902212,10.66217629,86.977,86.927,10.352]
[1773141902614,10.66217629,86.977,86.92,3.38448941]
[1773141903619,10.66217629,86.977,86.93,3.38448941]
[1773141903819,10.66217629,86.977,86.907,21.3757631]
[1773141904020,10.66129671,86.969,86.91,3.38448941]
[1773141904221,10.66128128,86.965,86.92,3.38448941]
[1773141904421,10.66128128,86.965,86.93,3.38448941]
[1773141907329,10.66128128,86.965,86.925,10.353]
[1773141907519,10.66128128,86.965,86.93,3.38448941]
[1773141909322,10.66128128,86.965,86.934,10.352]
[1773141910721,14.28201244,87.024,86.882,34.59]
[1773141910722,10.66563176,86.999,86.95,3.38448941]
[1773141911124,10.66563176,86.999,86.94,3.38448941]
[1773141911325,3.38448941,87.0,86.944,10.35]
[1773141911326,10.64818397,86.994,86.944,10.35]
[1773141911927,10.64818397,86.989,86.944,10.35]
[1773141913024,10.345,86.988,86.944,10.35]
[1773141913331,10.64736861,86.987,86.944,10.35]
[1773141913732,10.64736861,86.979,86.937,10.351]
[1773141915735,10.64736861,86.979,86.943,10.351]
[1773141916731,10.64736861,86.979,86.919,21.3757631]
[1773141916732,10.64736861,86.979,86.935,10.351]
[1773141919535,10.64736861,86.979,86.941,10.351]
[1773141934352,10.64736861,86.979,86.905,21.41081093]
[1773141934546,3.38448941,86.92,86.871,3.70072469]
[1773141935154,3.38448941,86.94,86.891,3.70072469]
[1773141935556,3.70786174,86.945,86.901,3.70072469]
[1773141945164,3.70786174,86.945,86.9,10.356]
[1773141945165,7.09235115,86.97,86.921,3.70072469]
[1773141945359,3.70786174,86.97,86.921,3.70072469]
[1773141945564,3.70786174,86.969,86.921,3.70072469]
[1773141946365,3.70786174,86.965,86.921,3.70072469]
[1773141947166,3.91374379,86.961,86.921,3.70072469]
[1773141948068,3.91374379,86.959,86.91,13.73848941]
[1773141948365,3.91374379,86.959,86.91,17.57724888]
[1773141948563,3.91374379,86.959,86.92,3.38448941]
[1773141949963,3.91374379,86.971,86.931,3.83875947]
[1773141953163,3.91374379,86.971,86.923,10.353]
[1773141953368,3.91374379,86.969,86.923,10.353]
[1773141955571,3.91374379,86.969,86.93,7.22324888]
[1773141956460,3.91374379,86.969,86.931,10.352]
[1773141958971,3.91374379,86.984,86.941,3.83875947]
[1773141960370,3.91374379,86.984,86.942,10.351]
[1773141961669,3.91374379,87.002,86.951,3.83875947]
[1773141961875,3.91374379,86.999,86.951,3.83875947]
[1773141962268,3.91374379,86.979,86.934,3.83875947]
[1773141962469,3.91374379,86.969,86.921,3.83875947]
[1773141963475,3.91374379,86.966,86.921,14.19175947]
[1773141964274,3.38333097,86.97,86.921,14.19175947]
[1773141964275,3.84818964,86.962,86.921,3.83875947]
[1773141965476,3.84818964,86.979,86.93,3.38333097]
[1773141965780,3.84818964,86.977,86.921,3.83875947]
[1773141967073,14.19618964,86.969,86.922,10.353]
[1773141967274,3.84818964,86.968,86.922,10.353]
[1773141968378,3.84818964,86.965,86.922,10.353]
[1773141969682,3.84818964,86.963,86.922,10.353]
[1773141971377,3.84818964,86.949,86.905,3.92100274]
[1773141971779,3.84818964,86.932,86.88,3.38333097]
[1773141971981,3.84818964,86.929,86.877,3.92100274]
[1773141972180,3.38333097,86.92,86.877,3.92100274]
[1773141972687,14.20118964,86.924,86.877,3.92100274]
[1773141973185,3.84818964,86.924,86.879,3.92100274]
[1773141973386,3.84818964,86.924,86.88,3.38333097]
[1773141974286,3.84818964,86.938,86.891,3.92100274]
[1773141975386,3.84818964,86.953,86.911,3.92100274]
[1773141976385,3.84818964,86.953,86.912,10.354]
[1773141977989,14.19718964,86.953,86.912,10.354]
[1773141978886,3.84818964,86.952,86.912,10.354]
[1773141979091,10.71774712,86.997,86.864,20.72]
[1773141979092,3.84818964,86.949,86.904,10.355]
[1773141980493,3.84818964,86.944,86.904,10.355]
[1773141980992,10.351,86.943,86.897,3.92100274]
[1773141982495,10.351,86.943,86.899,10.356]
[1773141983394,3.84818964,86.944,86.901,10.355]
[1773141984295,10.35,86.95,86.905,3.92100274]
[1773141985394,10.35,86.95,86.906,14.27600274]
[1773141985595,10.35,86.95,86.907,3.92100274]
[1773141987996,13.73333097,86.95,86.907,3.92100274]
[1773141988494,10.35,86.946,86.907,3.92100274]
[1773141988701,14.19818964,86.946,86.907,3.92100274]
[1773141989899,10.35,86.944,86.907,3.92100274]
[1773141992396,3.84818964,86.945,86.909,14.27600274]
[1773141992596,3.84818964,86.945,86.91,7.30433371]
[1773141993702,3.84818964,86.945,86.91,3.92100274]
[1773141997712,3.84818964,86.945,86.91,14.27500274]
[1773141998007,3.84818964,86.945,86.911,3.67546627]
[1773142006907,10.351,86.941,86.911,3.67546627]
[1773142015325,3.67220786,86.94,86.901,3.67546627]
[1773142016329,10.351,86.938,86.901,3.67546627]
[1773142021134,14.02320786,86.938,86.901,3.67546627]
[1773142024029,3.83711611,86.935,86.891,21.38950206]
[1773142024234,3.83711611,86.929,86.888,4.03503994]
[1773142025432,3.83711611,86.929,86.89,4.03503994]
[1773142026133,3.83711611,86.929,86.891,4.03503994]
[1773142026334,20.695,86.97,86.901,4.03503994]
[1773142026335,10.352,86.935,86.901,4.03503994]
[1773142026633,3.83711611,86.949,86.901,4.03503994]
[1773142027334,10.351,86.943,86.904,4.03503994]
[1773142027934,14.18811611,86.943,86.904,4.03503994]
[1773142028530,3.83711611,86.942,86.904,4.03503994]
[1773142031136,14.18811611,86.94,86.904,4.03503994]
[1773142031540,3.83711611,86.94,86.906,4.03503994]
[1773142035637,3.83711611,86.939,86.899,10.356]
[1773142037444,3.38641614,86.94,86.899,10.356]
[1773142037445,3.83711611,86.936,86.899,10.356]
[1773142038744,3.83711611,86.936,86.9,4.03503994]
[1773142039141,3.83711611,86.936,86.891,21.38950206]
[1773142039142,3.83711611,86.936,86.902,4.03503994]
[1773142039642,10.351,86.943,86.902,4.03503994]
[1773142040339,10.351,86.943,86.904,4.03503994]
[1773142040539,3.83711611,86.942,86.904,4.03503994]
[1773142040744,3.83711611,86.94,86.904,4.03503994]
[1773142042746,3.83711611,86.937,86.904,4.03503994]
[1773142042949,3.83711611,86.937,86.896,10.356]
[1773142043644,10.352,86.931,86.893,4.03503994]
[1773142043852,3.83711611,86.93,86.893,4.03503994]
[1773142048347,3.83711611,86.927,86.893,4.03503994]
[1773142048553,3.83711611,86.927,86.859,28.51816811]
[1773142048554,3.38641614,86.9,86.817,35.72595]
[1773142048847,3.38641614,86.87,86.81,3.38641614]
[1773142049042,3.38641614,86.87,86.815,10.366]
[1773142049243,10.77667524,86.923,86.83,3.38641614]
[1773142049448,3.38641614,86.88,86.83,3.38641614]
[1773142049854,10.358,86.879,86.821,10.365]
[1773142050256,10.358,86.879,86.82,3.38641614]
[1773142050557,3.38641614,86.87,86.821,19.51459743]
[1773142056053,3.38641614,86.86,86.809,19.45364529]
[1773142059461,3.38641614,86.85,86.809,19.45364529]
[1773142059757,3.38641614,86.84,86.791,19.37777037]
[1773142060757,10.362,86.849,86.8,3.38641614]
[1773142060964,10.362,86.849,86.801,19.37777037]
[1773142064869,10.362,86.849,86.8,3.38641614]
[1773142065673,10.362,86.849,86.81,3.38641614]
[1773142065976,10.362,86.849,86.8,13.75441614]
[1773142073080,10.361,86.858,86.807,10.367]
[1773142073275,10.361,86.858,86.81,3.38641614]
[1773142074382,10.361,86.858,86.814,10.366]
[1773142080178,10.361,86.858,86.755,2.00401956]
[1773142080179,3.38641614,86.88,86.82,3.38641614]
[1773142080680,3.38641614,86.88,86.821,19.41034909]
[1773142081186,10.36,86.867,86.828,19.41034909]
[1773142081381,10.36,86.867,86.827,10.364]
[1773142081382,3.38641614,86.87,86.811,19.36225117]
[1773142081588,10.362,86.849,86.811,19.36225117]
[1773142081887,3.38641614,86.84,86.791,19.36225117]
[1773142082481,3.38641614,86.82,86.791,19.36225117]
[1773142083091,3.38641614,86.83,86.791,19.36225117]
[1773142083589,3.39650803,86.83,86.791,19.36225117]
[1773142083978,3.39650803,86.83,86.744,2.0044351]
[1773142083979,10.366,86.812,86.763,10.372]
[1773142084183,10.366,86.812,86.733,20.752]
[1773142084184,3.39650803,86.8,86.75,3.39650803]
[1773142084483,10.77667524,86.861,86.74,3.39650803]
[1773142084683,10.368,86.799,86.751,10.373]
[1773142084887,3.39650803,86.8,86.74,3.39650803]
[1773142085188,3.39650803,86.79,86.74,3.39650803]
[1773142085387,3.39650803,86.8,86.74,3.39650803]
[1773142085782,3.39650803,86.81,86.75,3.39650803]
[1773142085988,10.367,86.808,86.76,3.39650803]
[1773142086184,10.367,86.808,86.751,10.62522537]
[1773142086386,3.39650803,86.8,86.755,10.62522537]
[1773142086583,3.39650803,86.79,86.755,10.62522537]
[1773142087883,3.39650803,86.8,86.755,10.62522537]
[1773142088089,3.39650803,86.78,86.745,10.61487026]
[1773142089889,10.37,86.784,86.745,10.61487026]
[1773142090092,3.39650803,86.79,86.745,10.61487026]
[1773142090993,10.369,86.789,86.745,10.61487026]
[1773142091493,3.39650803,86.79,86.745,10.61487026]
[1773142091793,3.39650803,86.78,86.745,10.61487026]
[1773142092393,10.37,86.777,86.745,10.61487026]
[1773142092798,3.39650803,86.78,86.745,10.61487026]
[1773142093495,10.369,86.786,86.745,10.61487026]
[1773142094898,10.37,86.779,86.745,10.61487026]
[1773142095789,3.39650803,86.78,86.745,10.61487026]
[1773142095997,3.39650803,86.79,86.745,10.61487026]
[1773142096498,10.369,86.788,86.745,10.61487026]
[1773142098998,10.37,86.782,86.745,10.61487026]
[1773142103494,3.39650803,86.78,86.745,10.61487026]
[1773142104396,20.731,86.821,86.694,2.00553828]
[1773142104397,3.39650803,86.77,86.729,10.6590256]
[1773142104598,3.39650803,86.78,86.729,10.6590256]
[1773142105303,10.37,86.784,86.741,10.67688148]
[1773142106404,10.37,86.784,86.744,10.67688148]
[1773142107708,10.37,86.778,86.744,10.67688148]
[1773142109806,10.37,86.785,86.744,10.67688148]
[1773142110101,14.36890032,86.858,86.744,10.67688148]
[1773142110102,3.39650803,86.79,86.744,10.67688148]
[1773142110608,10.37,86.78,86.744,10.67688148]
[1773142111508,10.369,86.787,86.744,10.67688148]
[1773142111699,3.39650803,86.8,86.744,10.67688148]
[1773142112006,3.39650803,86.79,86.744,10.67688148]
[1773142113396,10.37,86.781,86.744,10.67688148]
[1773142116002,10.371,86.775,86.744,10.67688148]
[1773142119711,3.39650803,86.78,86.744,10.67688148]
[1773142120210,3.39650803,86.77,86.722,10.377]
[1773142121112,3.39650803,86.78,86.722,10.377]
[1773142122305,3.39650803,86.78,86.723,5.33024626]
[1773142122513,10.372,86.762,86.723,5.33024626]
[1773142124213,10.371,86.77,86.731,5.32210013]
[1773142125309,10.372,86.765,86.731,5.32210013]
[1773142125513,3.39650803,86.78,86.731,5.32210013]
[1773142126314,3.39650803,86.78,86.732,5.23927682]
[1773142127403,10.372,86.764,86.732,5.23927682]
[1773142134421,10.373,86.758,86.732,5.23927682]
[1773142134620,8.73920876,86.778,86.732,5.23927682]
[1773142134822,8.73920876,86.777,86.732,5.23927682]
[1773142135121,8.73920876,86.776,86.732,5.23927682]
[1773142135321,3.39650803,86.77,86.732,5.23927682]
[1773142135522,10.372,86.762,86.732,5.23927682]
[1773142139819,10.77667524,86.803,86.732,5.23927682]
[1773142140024,70.2934867,86.924,86.689,20.762]
[1773142140025,3.39650803,86.79,86.741,5.22363484]
[1773142140628,10.371,86.772,86.741,5.22363484]
[1773142142125,10.37,86.779,86.741,5.22363484]
[1773142143321,10.37,86.779,86.742,5.25612213]
[1773142143926,10.369,86.786,86.742,5.25612213]
[1773142144622,10.369,86.786,86.743,10.374]
[1773142144828,3.39873625,86.81,86.761,5.25610841]
[1773142145027,8.74308558,86.809,86.761,5.25610841]
[1773142145229,8.74308558,86.808,86.761,5.25610841]
[1773142145429,8.74168822,86.807,86.761,5.25610841]
[1773142145628,3.39873625,86.81,86.761,5.25610841]
[1773142145822,8.7416696,86.809,86.761,5.25610841]
[1773142146128,8.7416696,86.808,86.761,5.25610841]
[1773142146331,10.368,86.794,86.761,5.25610841]
[1773142147224,10.368,86.801,86.761,5.25610841]
[1773142147429,8.74052734,86.823,86.771,5.24936816]
[1773142147733,3.39873625,86.83,86.771,5.24936816]
[1773142147931,10.366,86.815,86.773,5.24936816]
[1773142152634,10.366,86.815,86.774,5.26556461]
[1773142160744,10.365,86.822,86.78,3.39873625]
[1773142161043,10.365,86.822,86.781,5.25377114]
[1773142162545,10.365,86.822,86.782,5.25773625]
[1773142163141,10.365,86.822,86.783,10.37]
[1773142163348,10.365,86.822,86.784,5.28026909]
[1773142163641,10.365,86.822,86.79,3.39873625]
[1773142163841,10.365,86.822,86.791,5.28026909]
[1773142167748,10.364,86.831,86.792,5.29525644]
[1773142168349,10.365,86.825,86.792,5.29525644]
[1773142169647,10.363,86.837,86.801,5.33268845]
[1773142170153,10.364,86.832,86.801,5.33268845]
[1773142174559,10.363,86.839,86.803,5.32107817]
[1773142176151,10.363,86.839,86.81,8.71902604]
[1773142176758,10.363,86.839,86.81,5.32028979]
[1773142177955,3.39873625,86.85,86.8,5.3198254]
[1773142179356,10.363,86.835,86.8,5.3198254]
[1773142179556,3.39873625,86.85,86.802,5.32297129]
[1773142179757,3.39873625,86.86,86.802,5.32297129]
[1773142180163,11.51,86.936,86.762,20.745]
[1773142180164,3.39873625,86.87,86.811,5.32297129]
[1773142180360,3.39873625,86.87,86.821,5.32297129]
[1773142181358,10.362,86.85,86.821,5.32297129]
[1773142182364,10.362,86.85,86.81,3.39873625]
[1773142182561,10.362,86.85,86.81,8.7286898]
[1773142183167,10.362,86.85,86.811,5.32995355]
[1773142186471,10.362,86.85,86.812,5.31216671]
[1773142187261,10.362,86.85,86.814,5.31151928]
[1773142187465,10.361,86.857,86.821,5.31151928]
[1773142187659,3.39873625,86.88,86.821,5.31151928]
[1773142187864,3.39873625,86.88,86.831,5.31151928]
[1773142189368,3.39873625,86.87,86.82,5.31418037]
[1773142191374,10.361,86.852,86.82,5.31418037]
[1773142191673,10.361,86.852,86.821,5.31285578]
[1773142192166,3.39873625,86.86,86.81,5.31285578]
[1773142192968,10.362,86.845,86.81,5.31285578]
[1773142195074,10.362,86.845,86.811,5.32580255]
[1773142202284,10.362,86.852,86.813,5.33925008]
[1773142202882,3.39873625,86.88,86.821,5.33925008]
[1773142203281,10.67967895,86.897,86.785,21.3315263]
[1773142203282,8.72560596,86.887,86.811,5.33274748]
[1773142203483,3.39873625,86.86,86.811,5.33274748]
[1773142204582,10.362,86.848,86.811,5.33274748]
[1773142205983,10.363,86.841,86.811,5.33274748]
[1773142207781,10.363,86.841,86.801,5.32742079]
[1773142209178,10.363,86.836,86.801,5.32742079]
[1773142209982,10.363,86.836,86.803,5.29947415]
[1773142214284,10.363,86.839,86.805,5.3218918]
[1773142215588,10.364,86.834,86.805,5.3218918]
[1773142218989,10.364,86.828,86.795,5.30976993]
[1773142226593,8.75829541,86.849,86.8,3.39366877]
[1773142226797,8.75829541,86.849,86.752,28.71754217]
[1773142226798,8.75898392,86.864,86.82,3.39366877]
[1773142226995,8.75898392,86.863,86.82,3.39366877]
[1773142227192,3.39366877,86.87,86.82,3.39366877]
[1773142227396,10.362,86.85,86.82,3.39366877]
[1773142227799,10.362,86.85,86.811,5.32430942]
[1773142228601,10.362,86.844,86.801,5.32416054]
[1773142228800,3.39366877,86.85,86.801,5.32416054]
[1773142229505,3.39366877,86.86,86.801,5.32416054]
[1773142229705,8.75961578,86.859,86.801,5.32416054]
[1773142229910,8.75961578,86.858,86.801,5.32416054]
[1773142230110,3.39366877,86.86,86.801,5.32416054]
[1773142230306,8.76335238,86.859,86.801,5.32416054]
[1773142230607,10.363,86.841,86.801,5.32416054]
[1773142237317,10.361,86.853,86.811,5.35835236]
[1773142237617,10.361,86.853,86.778,20.741]
[1773142237618,3.39366877,86.89,86.831,5.35835236]
[1773142237826,8.76623136,86.889,86.831,5.35835236]
[1773142238115,8.76623136,86.888,86.831,5.35835236]
[1773142238415,10.359,86.874,86.833,5.35835236]
[1773142238618,8.75261129,86.886,86.841,5.35835236]
[1773142238818,3.39366877,86.89,86.841,5.35835236]
[1773142238819,8.75261129,86.885,86.841,5.35835236]
[1773142239015,8.75261129,86.884,86.841,5.35835236]
[1773142239314,3.39366877,86.89,86.841,5.35835236]
[1773142239514,8.75017378,86.889,86.841,5.35835236]
[1773142239714,8.75017378,86.888,86.841,5.35835236]
[1773142239915,8.75017378,86.887,86.841,5.35835236]
[1773142240107,8.75017378,86.886,86.841,5.35835236]
[1773142240307,10.358,86.881,86.841,5.35835236]
[1773142240615,8.74778842,86.889,86.841,5.35835236]
[1773142240915,8.74778842,86.888,86.841,5.35835236]
[1773142241111,8.74778842,86.887,86.841,5.35835236]
[1773142241317,10.359,86.875,86.841,5.35835236]
[1773142246020,10.36,86.867,86.841,5.35835236]
[1773142247919,3.39366877,86.87,86.819,5.37300778]
[1773142248316,3.39366877,86.86,86.819,5.37300778]
[1773142248519,3.39366877,86.85,86.808,5.37300778]
[1773142248719,3.39366877,86.86,86.808,5.37300778]
[1773142248920,10.75113349,86.894,86.808,5.37300778]
[1773142248921,3.39366877,86.85,86.808,5.37300778]
[1773142249221,10.363,86.842,86.808,5.37300778]
[1773142249422,3.39366877,86.84,86.798,5.37357598]
[1773142249821,10.364,86.829,86.798,5.37357598]
[1773142250717,10.363,86.837,86.798,5.37357598]
[1773142253418,10.364,86.83,86.785,15.74160842]
[1773142253718,10.364,86.83,86.786,5.37260842]
[1773142255125,10.365,86.82,86.786,5.37260842]
[1773142260827,10.365,86.82,86.774,5.36434272]
[1773142260828,3.39366877,86.82,86.774,5.36434272]
[1773142261029,3.39366877,86.81,86.774,5.36434272]
[1773142262328,10.367,86.804,86.774,5.36434272]
[1773142262725,3.39366877,86.81,86.774,5.36434272]
[1773142263030,3.39366877,86.81,86.761,5.3652461]
[1773142264624,10.368,86.802,86.761,5.3652461]
[1773142266930,3.39777467,86.79,86.747,5.36509658]
[1773142268332,10.37,86.782,86.736,5.34332146]
[1773142268934,10.37,86.782,86.738,5.34332146]
[1773142269233,3.39777467,86.79,86.741,5.34332146]
[1773142270429,3.39777467,86.79,86.743,5.36933806]
[1773142270628,10.369,86.788,86.743,5.36933806]
[1773142270926,3.39777467,86.79,86.743,5.36933806]
[1773142272021,3.39777467,86.79,86.735,10.375]
[1773142272223,3.39777467,86.77,86.724,5.36623255]
[1773142272427,3.39777467,86.78,86.724,5.36623255]
[1773142273332,10.371,86.771,86.724,5.36623255]
[1773142274635,10.371,86.771,86.73,3.39777467]
[1773142274930,10.371,86.771,86.73,8.76164073]
[1773142275134,10.371,86.771,86.731,5.36386606]
[1773142279434,10.371,86.771,86.681,20.764]
[1773142279435,3.39777467,86.76,86.718,5.37794503]
[1773142279737,3.39777467,86.76,86.712,10.378]
[1773142280137,10.373,86.756,86.712,15.75594503]
[1773142280937,10.373,86.756,86.662,21.3315263]
[1773142280938,10.374,86.745,86.701,15.75694503]
[1773142281139,10.374,86.745,86.702,5.37794503]
[1773142282437,10.375,86.738,86.693,10.38]
[1773142282638,10.375,86.738,86.694,5.3375913]
[1773142285637,10.375,86.738,86.698,5.30902573]
[1773142291447,20.742,86.775,86.711,5.2917216]
[1773142291646,3.39777467,86.78,86.721,5.2917216]
[1773142293144,3.39777467,86.77,86.721,5.2917216]
[1773142293749,20.738,86.792,86.722,5.2307787]
[1773142293950,3.39777467,86.77,86.722,5.2307787]
[1773142294847,3.39777467,86.76,86.722,5.2307787]
[1773142295151,3.39777467,86.76,86.701,5.23082904]
[1773142296451,10.374,86.75,86.707,5.23287932]
[1773142297151,10.374,86.744,86.707,5.23287932]
[1773142297548,10.375,86.738,86.707,5.23287932]
[1773142298452,10.376,86.731,86.696,5.22203389]
[1773142301158,3.39777467,86.73,86.681,5.18890997]
[1773142301354,3.39777467,86.74,86.681,5.18890997]
[1773142302355,3.39777467,86.74,86.691,5.18719745]
[1773142303459,3.39777467,86.74,86.693,5.14028986]
[1773142304354,10.376,86.731,86.693,5.14028986]
[1773142305754,10.377,86.725,86.693,5.14028986]
[1773142307153,10.377,86.719,86.693,5.14028986]
[1773142307354,3.39777467,86.74,86.693,5.14028986]
[1773142307658,10.377,86.725,86.693,5.14028986]
[1773142308259,10.376,86.734,86.693,5.14028986]
[1773142308454,3.39777467,86.74,86.693,5.14028986]
[1773142309361,10.377,86.724,86.693,5.14028986]
[1773142318772,3.39777467,86.73,86.693,5.14028986]
[1773142318973,3.39777467,86.73,86.671,5.09494435]
[1773142319171,10.377,86.718,86.675,15.48802834]
[1773142319372,8.72112639,86.753,86.676,5.10602834]
[1773142319572,20.746,86.756,86.681,5.10602834]
[1773142319573,3.39777467,86.73,86.681,5.10602834]
[1773142319974,10.377,86.719,86.683,5.10602834]
[1773142320874,10.376,86.727,86.688,5.10501854]
[1773142321576,10.377,86.722,86.688,5.10501854]
[1773142321778,10.377,86.722,86.644,22.77993778]
[1773142321779,8.72112639,86.755,86.701,5.10150053]
[1773142321977,3.39777467,86.75,86.701,5.10150053]
[1773142322876,10.374,86.745,86.701,5.10150053]
[1773142323377,10.374,86.745,86.711,5.11813334]
[1773142324075,10.75113349,86.782,86.711,5.11813334]
[1773142324076,10.373,86.753,86.711,5.11813334]
[1773142324276,3.39777467,86.77,86.711,5.11813334]
[1773142324576,10.373,86.754,86.715,5.1163749]
[1773142334185,10.372,86.764,86.721,5.11158929]
[1773142334684,10.372,86.764,86.731,5.11158929]
[1773142339782,0.0541574,86.757,86.712,5.12239538]
[1773142340086,0.0541574,86.749,86.7,8.52339157]
[1773142340283,0.0541574,86.749,86.701,5.12239538]
[1773142340485,0.0555022,86.746,86.703,10.379]
[1773142342090,10.375,86.743,86.703,15.50525471]
[1773142342283,10.375,86.743,86.704,5.12561402]
[1773142343388,10.52011185,86.743,86.704,5.12561402]
[1773142343979,10.375,86.743,86.704,5.12561402]
[1773142344188,0.17829347,86.742,86.704,5.12561402]
[1773142344982,10.375,86.738,86.704,5.12561402]
[1773142347695,0.17829347,86.742,86.704,5.12561402]
[1773142349497,10.375,86.735,86.704,5.12561402]
[1773142349795,0.17829347,86.742,86.704,5.12561402]
[1773142351102,10.55329347,86.742,86.704,5.12561402]
[1773142356809,0.17829347,86.742,86.707,5.1237252]
[1773142359707,10.374,86.746,86.709,10.378]
[1773142359910,0.9731683,86.752,86.711,4.98396376]